fUSD/lending_fUSD_20250205
["ID","MTS","AMOUNT","RATE_DAILY","PERIOD"]
[351728804,1738769438012,-543.70065156,8.8e-05,2]
[351728956,1738769439873,-57744.62501269,8.8e-05,2]
[351728959,1738769439882,-172.75,8.943e-05,2]
[351728960,1738769439892,-436.07,8.943e-05,2]
[351728963,1738769439902,-2735.8616,8.973e-05,2]
[351728965,1738769439911,-1304.31882212,8.998e-05,2]
[351728966,1738769439920,-161.55,8.998e-05,2]
[351728968,1738769439931,-1077.00515261,9e-05,2]
[351728971,1738769439941,-302.03435472,9e-05,3]
[351728973,1738769439952,-1852.42,9.016e-05,2]
[351728975,1738769439961,-1000.0,9.041e-05,2]
[351728977,1738769439970,-199.06,9.041e-05,2]
[351728979,1738769439980,-7342.95,9.041e-05,2]
[351728980,1738769439990,-42441.73067405,9.37e-05,2]
[351728982,1738769439999,-500.0,9.863e-05,2]
[351728985,1738769440008,-639.0,9.895e-05,2]
[351728986,1738769440018,-500.0,9.898e-05,2]
[351728988,1738769440028,-150.0,9.9e-05,2]
[351728990,1738769440038,-150.0,9.9e-05,2]
[351728992,1738769440050,-1729.042,9.931e-05,2]
[351728995,1738769440060,-200.0,9.932e-05,2]
[351728996,1738769440070,-500.0,9.932e-05,2]
[351728998,1738769440080,-651.45,9.932e-05,2]
[351729000,1738769440090,-500.0,9.932e-05,2]
[351729002,1738769440099,-500.0,9.932e-05,2]
[351729004,1738769440108,-180.86,9.932e-05,2]
[351729006,1738769440118,-591.46,9.932e-05,2]
[351729008,1738769440127,-661.37,9.932e-05,2]
[351729010,1738769440136,-582.66,9.932e-05,2]
[351729012,1738769440145,-702.85,9.932e-05,2]
[351729014,1738769440155,-745.2,9.932e-05,2]
[351729016,1738769440164,-500.0,9.932e-05,2]
[351729018,1738769440173,-500.0,9.932e-05,2]
[351729020,1738769440183,-532.48,9.932e-05,2]
[351729022,1738769440192,-770.7,9.932e-05,2]
[351729024,1738769440201,-520.34,9.932e-05,2]
[351729026,1738769440210,-676.69,9.932e-05,2]
[351729028,1738769440220,-665.57,9.932e-05,2]
[351729030,1738769440229,-809.27,9.932e-05,2]
[351729032,1738769440240,-500.0,9.932e-05,2]
[351729034,1738769440249,-500.0,9.932e-05,2]
[351729036,1738769440259,-500.0,9.932e-05,2]
[351729061,1738769440268,-706.85,9.932e-05,2]
[351729064,1738769440500,-500.0,9.932e-05,2]
[351729066,1738769440510,-1633.92,9.932e-05,2]
[351729068,1738769440519,-500.0,9.932e-05,2]
[351729070,1738769440529,-227.85,9.932e-05,2]
[351729072,1738769440538,-669.24,9.932e-05,2]
[351729074,1738769440548,-500.0,9.932e-05,2]
[351729076,1738769440557,-500.0,9.932e-05,2]
[351729078,1738769440566,-753.89,9.932e-05,2]
[351729079,1738769440577,-749.74,9.932e-05,2]
[351729082,1738769440587,-500.0,9.932e-05,2]
[351729084,1738769440601,-855.33,9.932e-05,2]
[351729086,1738769440611,-500.0,9.932e-05,2]
[351729087,1738769440621,-1070.44,9.932e-05,2]
[351729089,1738769440636,-1314.31,9.932e-05,2]
[351729091,1738769440647,-1019.55,9.932e-05,2]
[351729094,1738769440660,-500.0,9.933e-05,2]
[351729095,1738769440671,-500.0,9.973e-05,2]
[351729098,1738769440681,-42254.74944271,9.997e-05,2]
[351729100,1738769440690,-411.44,9.998e-05,2]
[351729102,1738769440700,-500.0,9.998e-05,2]
[351729103,1738769440710,-717.65,9.998e-05,2]
[351729105,1738769440722,-803.29,9.998e-05,2]
[351729107,1738769440731,-500.0,9.998e-05,2]
[351729109,1738769440741,-222.51515445,9.998e-05,2]
[351729111,1738769440750,-500.0,9.998e-05,2]
[351729113,1738769440759,-500.0,9.998e-05,2]
[351729115,1738769440769,-348.974,9.998e-05,2]
[351729117,1738769440778,-1120.74,9.998e-05,2]
[351729119,1738769440788,-533.84,9.998e-05,2]
[351729121,1738769440797,-500.0,9.998e-05,2]
[351729123,1738769440806,-2720.27,9.998e-05,2]
[351729125,1738769440816,-500.0,9.998e-05,2]
[351729127,1738769440828,-1733.67,9.998e-05,2]
[351729129,1738769440838,-500.0,9.998e-05,2]
[351729131,1738769440848,-1715.43,9.998e-05,2]
[351729133,1738769440857,-1920.15,9.998e-05,2]
[351729135,1738769440867,-500.0,9.998e-05,2]
[351729137,1738769440877,-1386.73,9.998e-05,2]
[351729139,1738769440888,-982.82,9.998e-05,2]
[351729142,1738769440898,-500.0,9.998e-05,2]
[351729144,1738769440908,-1057.59,9.998e-05,2]
[351729145,1738769440918,-2678.46,9.998e-05,2]
[351729148,1738769440928,-3094.3,9.998e-05,2]
[351729150,1738769440938,-1123.45,9.998e-05,2]
[351729151,1738769440948,-500.0,9.998e-05,2]
[351729153,1738769440958,-2772.21,9.998e-05,2]
[351729155,1738769440967,-500.0,9.998e-05,2]
[351729157,1738769440977,-940.16,9.998e-05,2]
[351729159,1738769440987,-1123.83,9.998e-05,2]
[351729161,1738769440996,-500.0,9.998e-05,2]
[351729164,1738769441007,-500.0,9.998e-05,2]
[351729165,1738769441016,-500.0,9.998e-05,2]
[351729167,1738769441026,-500.0,9.998e-05,2]
[351729169,1738769441035,-500.0,9.998e-05,2]
[351729171,1738769441044,-500.0,9.998e-05,2]
[351729173,1738769441054,-500.0,9.998e-05,2]
[351729175,1738769441064,-406.81,9.998e-05,2]
[351729177,1738769441073,-599.08,9.998e-05,2]
[351729180,1738769441087,-1392.05,9.998e-05,2]
[351729182,1738769441097,-1861.05,9.998e-05,2]
[351729184,1738769441107,-1207.99,9.998e-05,2]
[351729185,1738769441116,-500.0,9.998e-05,2]
[351729187,1738769441125,-500.0,9.998e-05,2]
[351729189,1738769441135,-500.0,9.998e-05,2]
[351729191,1738769441144,-846.05,9.998e-05,2]
[351729193,1738769441154,-298.26647507,9.998e-05,2]
[351729196,1738769441164,-202.84645974,9.999e-05,3]
[351729198,1738769441173,-1017.97243575,9.999e-05,3]
[351729199,1738769441182,-1017.97243575,9.999e-05,3]
[351729202,1738769441192,-1017.97243575,9.999e-05,3]
[351729203,1738769441201,-1017.97243575,9.999e-05,3]
[351729205,1738769441211,-582.48,9.999e-05,2]
[351729207,1738769441221,-500.0,9.999e-05,2]
[351729210,1738769441231,-500.0,9.999e-05,2]
[351729212,1738769441240,-500.0,9.999e-05,2]
[351729214,1738769441250,-500.0,9.999e-05,2]
[351729216,1738769441259,-500.0,9.999e-05,2]
[351729218,1738769441268,-500.0,9.999e-05,2]
[351729219,1738769441277,-500.0,9.999e-05,2]
[351729221,1738769441286,-593.49,9.999e-05,2]
[351729223,1738769441295,-500.0,9.999e-05,2]
[351729226,1738769441305,-500.0,9.999e-05,2]
[351729228,1738769441314,-596.05815264,9.999e-05,2]
[351729229,1738769441324,-500.0,9.999e-05,2]
[351729231,1738769441335,-500.0,9.999e-05,2]
[351729234,1738769441344,-500.0,9.999e-05,2]
[351729235,1738769441354,-500.0,9.999e-05,2]
[351729238,1738769441363,-500.0,9.999e-05,2]
[351729240,1738769441373,-154.38711,9.999e-05,2]
[351729242,1738769441382,-500.0,9.999e-05,2]
[351729244,1738769441391,-502.49778258,9.999e-05,2]
[351729246,1738769441400,-158.710654,9.999e-05,2]
[351729248,1738769441410,-500.0,9.999e-05,2]
[351729250,1738769441419,-500.0,9.999e-05,2]
[351729252,1738769441428,-508.37,9.999e-05,2]
[351729254,1738769441438,-627.52,9.999e-05,2]
[351729255,1738769441448,-500.0,9.999e-05,2]
[351729257,1738769441457,-363.64,9.999e-05,2]
[351729259,1738769441467,-500.0,9.999e-05,2]
[351729261,1738769441476,-1429.27,9.999e-05,2]
[351729263,1738769441486,-500.0,9.999e-05,2]
[351729265,1738769441495,-500.0,9.999e-05,2]
[351729268,1738769441504,-500.11307738,9.999e-05,2]
[351729269,1738769441514,-500.0,9.999e-05,2]
[351729272,1738769441524,-500.0,9.999e-05,2]
[351729274,1738769441533,-500.0,9.999e-05,2]
[351729276,1738769441543,-1171.07,9.999e-05,2]
[351729277,1738769441552,-500.0,9.999e-05,2]
[351729279,1738769441562,-500.47857361,9.999e-05,2]
[351729281,1738769441572,-391.48,9.999e-05,2]
[351729283,1738769441584,-500.0,9.999e-05,2]
[351729286,1738769441595,-500.0,9.999e-05,2]
[351729287,1738769441604,-180.83,9.999e-05,2]
[351729290,1738769441615,-500.0,9.999e-05,2]
[351729292,1738769441628,-500.0,9.999e-05,2]
[351729294,1738769441642,-793.95,9.999e-05,2]
[351729296,1738769441655,-1518.78,9.999e-05,2]
[351729298,1738769441665,-958.82,9.999e-05,2]
[351729300,1738769441674,-500.0,9.999e-05,2]
[351729301,1738769441684,-247.24,9.999e-05,2]
[351729303,1738769441693,-500.0,9.999e-05,2]
[351729305,1738769441704,-1065.32,9.999e-05,2]
[351729307,1738769441714,-1109.65,9.999e-05,2]
[351729309,1738769441723,-500.0,9.999e-05,2]
[351729311,1738769441734,-955.28,9.999e-05,2]
[351729313,1738769441745,-500.0,9.999e-05,2]
[351729315,1738769441754,-500.0,9.999e-05,2]
[351729317,1738769441763,-331.83,9.999e-05,2]
[351729319,1738769441773,-500.0,9.999e-05,2]
[351729321,1738769441782,-500.0,9.999e-05,2]
[351729323,1738769441792,-1065.13,9.999e-05,2]
[351729325,1738769441802,-535.92,9.999e-05,2]
[351729327,1738769441811,-500.0,9.999e-05,2]
[351729329,1738769441821,-500.0,9.999e-05,2]
[351729331,1738769441835,-1603.88,9.999e-05,2]
[351729333,1738769441845,-500.0,9.999e-05,2]
[351729335,1738769441854,-500.0,9.999e-05,2]
[351729337,1738769441864,-917.8,9.999e-05,2]
[351729339,1738769441874,-500.0,9.999e-05,2]
[351729341,1738769441884,-843.41,9.999e-05,2]
[351729343,1738769441895,-718.57,9.999e-05,2]
[351729345,1738769441904,-500.0,9.999e-05,2]
[351729347,1738769441914,-943.98,9.999e-05,2]
[351729349,1738769441923,-500.0,9.999e-05,2]
[351729351,1738769441934,-500.0,9.999e-05,2]
[351729353,1738769441943,-500.0,9.999e-05,2]
[351729355,1738769441952,-500.0,9.999e-05,2]
[351729357,1738769441962,-3064.91,9.999e-05,2]
[351729359,1738769441972,-2421.32,9.999e-05,2]
[351729361,1738769441981,-500.0,9.999e-05,2]
[351729363,1738769441991,-500.0,9.999e-05,2]
[351729365,1738769442000,-847.89,9.999e-05,2]
[351729367,1738769442010,-1327.85,9.999e-05,2]
[351729369,1738769442019,-1208.63,9.999e-05,2]
[351729371,1738769442028,-1313.84,9.999e-05,2]
[351729373,1738769442038,-1086.78,9.999e-05,2]
[351729375,1738769442047,-1024.39,9.999e-05,2]
[351729377,1738769442057,-500.0,9.999e-05,2]
[351729379,1738769442066,-1147.96,9.999e-05,2]
[351729381,1738769442079,-667.79,9.999e-05,2]
[351729383,1738769442088,-1077.45,9.999e-05,2]
[351729385,1738769442098,-1264.06,9.999e-05,2]
[351729387,1738769442108,-550.32,9.999e-05,2]
[351729389,1738769442118,-967.26,9.999e-05,2]
[351729391,1738769442127,-1131.91,9.999e-05,2]
[351729393,1738769442137,-500.0,9.999e-05,2]
[351729395,1738769442147,-2971.48,9.999e-05,2]
[351729397,1738769442156,-500.0,9.999e-05,2]
[351729399,1738769442167,-1331.12,9.999e-05,2]
[351729401,1738769442176,-1141.48,9.999e-05,2]
[351729403,1738769442185,-950.73,9.999e-05,2]
[351729404,1738769442194,-500.0,9.999e-05,2]
[351729406,1738769442204,-1439.0,9.999e-05,2]
[351729408,1738769442213,-693.44,9.999e-05,2]
[351729410,1738769442223,-733.17,9.999e-05,2]
[351729412,1738769442232,-1150.85,9.999e-05,2]
[351729414,1738769442241,-1048.9,9.999e-05,2]
[351729416,1738769442251,-1839.79,9.999e-05,2]
[351729418,1738769442260,-1055.8,9.999e-05,2]
[351729420,1738769442269,-1025.25,9.999e-05,2]
[351729421,1738769442278,-2824.57,9.999e-05,2]
[351729423,1738769442288,-2428.27,9.999e-05,2]
[351729425,1738769442297,-2235.44,9.999e-05,2]
[351729427,1738769442307,-1103.36,9.999e-05,2]
[351729429,1738769442316,-1580.64,9.999e-05,2]
[351729431,1738769442326,-1937.6,9.999e-05,2]
[351729433,1738769442338,-1878.48,9.999e-05,2]
[351729435,1738769442347,-300.49,9.999e-05,2]
[351729437,1738769442357,-1684.27,9.999e-05,2]
[351729439,1738769442368,-1140.02,9.999e-05,2]
[351729441,1738769442378,-2418.16,9.999e-05,2]
[351729443,1738769442387,-2830.74,9.999e-05,2]
[351729445,1738769442397,-2581.24,9.999e-05,2]
[351729447,1738769442406,-500.0,9.999e-05,2]
[351729449,1738769442416,-500.0,9.999e-05,2]
[351729450,1738769442425,-1279.12,9.999e-05,2]
[351729452,1738769442434,-998.39,9.999e-05,2]
[351729454,1738769442443,-768.42,9.999e-05,2]
[351729456,1738769442453,-2672.99,9.999e-05,2]
[351729458,1738769442463,-269.98,9.999e-05,2]
[351729460,1738769442472,-500.0,9.999e-05,2]
[351729461,1738769442481,-1798.84,9.999e-05,2]
[351729462,1738769442490,-500.0,9.999e-05,2]
[351729463,1738769442499,-500.0,9.999e-05,2]
[351729464,1738769442508,-2108.54,9.999e-05,2]
[351729465,1738769442518,-500.0,9.999e-05,2]
[351729466,1738769442527,-846.0,9.999e-05,2]
[351729467,1738769442536,-2179.26,9.999e-05,2]
[351729468,1738769442545,-580.5,9.999e-05,2]
[351729469,1738769442554,-2461.48,9.999e-05,2]
[351729470,1738769442563,-2373.62,9.999e-05,2]
[351729471,1738769442572,-500.0,9.999e-05,2]
[351729472,1738769442584,-2116.06,9.999e-05,2]
[351729473,1738769442592,-500.0,9.999e-05,2]
[351729474,1738769442600,-892.78,9.999e-05,2]
[351729475,1738769442610,-500.0,9.999e-05,2]
[351729476,1738769442619,-500.0,9.999e-05,2]
[351729478,1738769442631,-750.37,9.999e-05,2]
[351729479,1738769442640,-500.0,9.999e-05,2]
[351729481,1738769442649,-961.04,9.999e-05,2]
[351729483,1738769442659,-1414.15,9.999e-05,2]
[351729486,1738769442670,-1994.17,9.999e-05,2]
[351729489,1738769442679,-1125.47,9.999e-05,2]
[351729492,1738769442688,-155.55,9.999e-05,2]
[351729495,1738769442699,-1175.67,9.999e-05,2]
[351729498,1738769442708,-1000.0,9.999e-05,2]
[351729500,1738769442718,-3459.23,9.999e-05,2]
[351729503,1738769442728,-500.0,9.999e-05,2]
[351729506,1738769442737,-500.0,9.999e-05,2]
[351729510,1738769442747,-500.0,9.999e-05,2]
[351729514,1738769442756,-1212.98,9.999e-05,2]
[351729517,1738769442765,-395.3,9.999e-05,2]
[351729519,1738769442775,-1822.44,9.999e-05,2]
[351729522,1738769442785,-1395.0,0.0001,2]
[351729525,1738769442795,-7092854.18300077,0.0001,2]
[351729528,1738769442813,-13962.65191876,0.0001,2]
[351729531,1738769442835,-500.0,9.998e-05,2]
[351729533,1738769442845,-195645.73346256,0.0001,2]
[351729536,1738769442864,-434.9440708,0.0001,2]
[351729541,1738769442898,-315.79016146,0.0001,2]
[351729543,1738769442909,-798.49676033,0.0001,2]
[351729545,1738769442921,-301.62279822,0.0001,2]
[351729548,1738769442936,-4579.78193836,0.0001,2]
[351729550,1738769442947,-3401.67507543,0.0001,2]
[351729554,1738769442959,-1132.08407683,0.0001,2]
[351729560,1738769442970,-94959.3628238,0.0001,2]
[351729670,1738769443774,-500.0,9.932e-05,2]
[351729672,1738769443783,-436.2736208,9.998e-05,2]
[351729675,1738769443796,-63.7263792,9.998e-05,2]
[351729676,1738769443805,-500.0,9.998e-05,2]
[351729679,1738769443814,-347.43,9.999e-05,2]
[351729680,1738769443823,-182.05081771,9.999e-05,2]
[351729687,1738769443879,-317.94918229,9.999e-05,2]
[351729689,1738769443890,-52.95907685,0.0001,2]
[351729692,1738769443909,-411.642,0.0001,2]
[351729694,1738769443922,-121958.75929051,0.0001,2]
[351729696,1738769443934,-3158.27562113,0.0001,2]
[351729699,1738769443945,-8143.88149726,0.0001,2]
[351729701,1738769443956,-13880.54347025,0.0001,2]
[351729704,1738769443975,-928.28750576,0.0001,2]
[351729892,1738769445945,-500.0,9.932e-05,2]
[351729894,1738769445955,-512.20393647,9.998e-05,2]
[351729896,1738769445965,-2341.27,9.999e-05,2]
[351729898,1738769445975,-161070.63713529,0.0001,2]
[351729900,1738769445986,-7919.53467144,0.0001,2]
[351729908,1738769446049,-445.419,0.0001,2]
[351729911,1738769446067,-2748.4549142,0.0001,2]
[351729913,1738769446082,-1325.95192759,0.0001,2]
[351729917,1738769446115,-1144909.31313418,0.0001,2]
[351729923,1738769446165,-25442.20032703,0.0001,2]
[351729925,1738769446178,-87058.69921819,0.0001,2]
[351729927,1738769446189,-347.73370643,0.0001,2]
[351729932,1738769446225,-2733.36047481,0.0001,2]
[351730211,1738769595337,-930.4447,8.851e-05,2]
[351730212,1738769595362,-300.0,9.5e-05,3]
[351730213,1738769595386,-700.0,9.6e-05,3]
[351730214,1738769595410,-1100.0,9.7e-05,3]
[351730215,1738769595435,-500.0,9.863e-05,2]
[351730216,1738769595459,-300.0,9.931e-05,2]
[351730217,1738769595482,-10429.28675004,9.931e-05,2]
[351730218,1738769595506,-500.0,9.932e-05,2]
[351730219,1738769595529,-791.92,9.932e-05,2]
[351730220,1738769595553,-790.65,9.932e-05,2]
[351730221,1738769595577,-500.0,9.932e-05,2]
[351730222,1738769595602,-500.0,9.932e-05,2]
[351730223,1738769595626,-500.0,9.932e-05,2]
[351730224,1738769595650,-500.0,9.932e-05,2]
[351730225,1738769595677,-500.0,9.932e-05,2]
[351730226,1738769595701,-200.0,9.933e-05,2]
[351730227,1738769595725,-200.0,9.936e-05,2]
[351730228,1738769595749,-200.0,9.939e-05,2]
[351730229,1738769595773,-2428.71646791,9.947e-05,2]
[351730230,1738769595797,-200.0,9.951e-05,2]
[351730231,1738769595821,-1602.20291522,9.96e-05,2]
[351730232,1738769595844,-200.0,9.965e-05,2]
[351730233,1738769595867,-1602.20291522,9.968e-05,2]
[351730234,1738769595892,-56724.65173867,9.97e-05,2]
[351730235,1738769595915,-500.0,9.973e-05,2]
[351730236,1738769595941,-56724.65173867,9.974e-05,2]
[351730237,1738769595968,-10429.28675004,9.981e-05,2]
[351730238,1738769595993,-1602.20291522,9.982e-05,2]
[351730239,1738769596017,-2428.71646791,9.985e-05,2]
[351730240,1738769596040,-200.0,9.986e-05,2]
[351730241,1738769596064,-2428.71646791,9.989e-05,2]
[351730242,1738769596090,-56724.65173867,9.99e-05,2]
[351730243,1738769596113,-10429.28675004,9.991e-05,2]
[351730244,1738769596136,-1602.20291522,9.992e-05,2]
[351730245,1738769596160,-56724.65173867,9.994e-05,2]
[351730246,1738769596183,-150.0,9.997e-05,2]
[351730247,1738769596207,-2428.71646791,9.997e-05,2]
[351730248,1738769596229,-599.35,9.998e-05,2]
[351730249,1738769596253,-2986.93,9.998e-05,2]
[351730250,1738769596277,-500.0,9.998e-05,2]
[351730251,1738769596298,-500.0,9.998e-05,2]
[351730252,1738769596320,-500.0,9.998e-05,2]
[351730253,1738769596343,-500.0,9.998e-05,2]
[351730254,1738769596367,-622.2,9.998e-05,2]
[351730255,1738769596394,-1002.54,9.998e-05,2]
[351730256,1738769596419,-270.28,9.998e-05,2]
[351730257,1738769596442,-500.0,9.998e-05,2]
[351730258,1738769596473,-854.22,9.998e-05,2]
[351730259,1738769596499,-500.0,9.998e-05,2]
[351730260,1738769596522,-1390.55,9.998e-05,2]
[351730261,1738769596545,-500.0,9.998e-05,2]
[351730262,1738769596568,-500.0,9.998e-05,2]
[351730263,1738769596591,-500.0,9.998e-05,2]
[351730264,1738769596613,-1300.76,9.998e-05,2]
[351730265,1738769596636,-500.95079342,9.998e-05,2]
[351730266,1738769596658,-500.0,9.998e-05,2]
[351730267,1738769596685,-1143.1,9.998e-05,2]
[351730268,1738769596710,-500.0,9.998e-05,2]
[351730269,1738769596733,-500.0,9.998e-05,2]
[351730270,1738769596757,-500.0,9.998e-05,2]
[351730271,1738769596781,-500.0,9.998e-05,2]
[351730272,1738769596804,-1296.49,9.998e-05,2]
[351730273,1738769596831,-500.0,9.998e-05,2]
[351730274,1738769596855,-500.0,9.998e-05,2]
[351730275,1738769596878,-500.0,9.998e-05,2]
[351730276,1738769596902,-500.0,9.998e-05,2]
[351730277,1738769596927,-548.22,9.998e-05,2]
[351730278,1738769596953,-616.67,9.998e-05,2]
[351730279,1738769596977,-1160.04,9.998e-05,2]
[351730280,1738769597000,-500.0,9.998e-05,2]
[351730281,1738769597025,-500.0,9.998e-05,2]
[351730282,1738769597048,-500.0,9.998e-05,2]
[351730283,1738769597072,-500.0,9.998e-05,2]
[351730284,1738769597096,-500.0,9.998e-05,2]
[351730285,1738769597120,-500.0,9.998e-05,2]
[351730286,1738769597143,-501.97280486,9.998e-05,2]
[351730287,1738769597165,-500.0,9.998e-05,2]
[351730288,1738769597188,-500.0,9.998e-05,2]
[351730289,1738769597214,-982.53,9.998e-05,2]
[351730290,1738769597238,-500.0,9.998e-05,2]
[351730291,1738769597262,-931.95,9.998e-05,2]
[351730292,1738769597526,-500.0,9.998e-05,2]
[351730293,1738769597550,-1497.16,9.998e-05,2]
[351730294,1738769597573,-500.0,9.998e-05,2]
[351730295,1738769597596,-500.0,9.998e-05,2]
[351730296,1738769597620,-2022.05,9.998e-05,2]
[351730297,1738769597643,-500.0,9.998e-05,2]
[351730298,1738769597667,-781.7,9.998e-05,2]
[351730299,1738769597694,-1829.68,9.998e-05,2]
[351730300,1738769597720,-1094.88,9.998e-05,2]
[351730301,1738769597743,-500.0,9.998e-05,2]
[351730302,1738769597767,-500.0,9.998e-05,2]
[351730303,1738769597791,-933.14,9.998e-05,2]
[351730304,1738769597814,-500.0,9.998e-05,2]
[351730305,1738769597838,-500.0,9.998e-05,2]
[351730306,1738769597875,-500.0,9.998e-05,2]
[351730307,1738769597901,-939.71,9.998e-05,2]
[351730308,1738769597926,-2497.54,9.998e-05,2]
[351730309,1738769597952,-500.0,9.998e-05,2]
[351730310,1738769597978,-500.0,9.998e-05,2]
[351730311,1738769598004,-500.0,9.998e-05,2]
[351730312,1738769598029,-500.0,9.998e-05,2]
[351730313,1738769598055,-2654.37,9.998e-05,2]
[351730314,1738769598082,-1744.11,9.998e-05,2]
[351730315,1738769598111,-1608.96,9.998e-05,2]
[351730316,1738769598137,-500.0,9.998e-05,2]
[351730317,1738769598162,-500.0,9.998e-05,2]
[351730318,1738769598188,-500.0,9.998e-05,2]
[351730319,1738769598217,-500.0,9.998e-05,2]
[351730320,1738769598241,-500.0,9.998e-05,2]
[351730321,1738769598266,-482.51526457,9.998e-05,2]
[351730322,1738769598292,-500.0,9.998e-05,2]
[351730323,1738769598316,-500.0,9.998e-05,2]
[351730324,1738769598340,-500.0,9.998e-05,2]
[351730325,1738769598364,-1879.69,9.998e-05,2]
[351730326,1738769598389,-500.0,9.998e-05,2]
[351730327,1738769598419,-2392.46,9.998e-05,2]
[351730328,1738769598445,-545.07,9.998e-05,2]
[351730329,1738769598474,-2737.13,9.998e-05,2]
[351730330,1738769598499,-500.0,9.998e-05,2]
[351730331,1738769598525,-500.0,9.998e-05,2]
[351730332,1738769598548,-500.0,9.998e-05,2]
[351730333,1738769598574,-1664.73,9.998e-05,2]
[351730334,1738769598600,-500.0,9.998e-05,2]
[351730335,1738769598625,-500.0,9.998e-05,2]
[351730336,1738769598649,-500.0,9.998e-05,2]
[351730337,1738769598678,-359.83,9.998e-05,2]
[351730338,1738769598707,-500.0,9.998e-05,2]
[351730339,1738769598735,-2059.19,9.998e-05,2]
[351730340,1738769598765,-1062.6,9.998e-05,2]
[351730341,1738769598791,-977.62,9.998e-05,2]
[351730342,1738769598818,-2587.69,9.998e-05,2]
[351730343,1738769598847,-10429.28675004,9.999e-05,2]
[351730344,1738769598873,-1179.1,9.999e-05,2]
[351730345,1738769598902,-500.0,9.999e-05,2]
[351730346,1738769598929,-500.0,9.999e-05,2]
[351730347,1738769598960,-500.0,9.999e-05,2]
[351730348,1738769598988,-1588.94,9.999e-05,2]
[351730349,1738769599015,-1062.33,9.999e-05,2]
[351730350,1738769599041,-500.0,9.999e-05,2]
[351730351,1738769599068,-500.0,9.999e-05,2]
[351730352,1738769599094,-500.0,9.999e-05,2]
[351730353,1738769599119,-500.0,9.999e-05,2]
[351730354,1738769599145,-500.0,9.999e-05,2]
[351730355,1738769599170,-502.27862366,9.999e-05,2]
[351730356,1738769599194,-500.0,9.999e-05,2]
[351730357,1738769599224,-500.0,9.999e-05,2]
[351730358,1738769599249,-500.0,9.999e-05,2]
[351730359,1738769599273,-500.0,9.999e-05,2]
[351730360,1738769599298,-500.0,9.999e-05,2]
[351730361,1738769599323,-500.0,9.999e-05,2]
[351730362,1738769599348,-500.0,9.999e-05,2]
[351730363,1738769599374,-1120.96,9.999e-05,2]
[351730364,1738769599400,-500.0,9.999e-05,2]
[351730365,1738769599424,-175.44,9.999e-05,2]
[351730366,1738769599451,-1032.55,9.999e-05,2]
[351730367,1738769599476,-500.0,9.999e-05,2]
[351730368,1738769599501,-500.0,9.999e-05,2]
[351730369,1738769599525,-500.0,9.999e-05,2]
[351730370,1738769599549,-503.39689167,9.999e-05,2]
[351730371,1738769599576,-500.0,9.999e-05,2]
[351730372,1738769599601,-500.0,9.999e-05,2]
[351730373,1738769599627,-500.0,9.999e-05,2]
[351730374,1738769599653,-500.0,9.999e-05,2]
[351730375,1738769599682,-500.0,9.999e-05,2]
[351730376,1738769599710,-195.9,9.999e-05,2]
[351730377,1738769599735,-500.0,9.999e-05,2]
[351730378,1738769599761,-500.0,9.999e-05,2]
[351730379,1738769599792,-947.79,9.999e-05,2]
[351730380,1738769599818,-1105.58,9.999e-05,2]
[351730381,1738769599843,-500.0,9.999e-05,2]
[351730382,1738769599867,-587.65,9.999e-05,2]
[351730383,1738769599899,-500.0,9.999e-05,2]
[351730384,1738769599924,-707.64,9.999e-05,2]
[351730385,1738769599956,-500.0,9.999e-05,2]
[351730386,1738769599981,-2877.76,9.999e-05,2]
[351730387,1738769600006,-924.5,9.999e-05,2]
[351730388,1738769600030,-500.0,9.999e-05,2]
[351730389,1738769600055,-500.0,9.999e-05,2]
[351730390,1738769600079,-500.0,9.999e-05,2]
[351730391,1738769600105,-1042.6,9.999e-05,2]
[351730392,1738769600129,-518.67913657,9.999e-05,2]
[351730393,1738769600153,-510.23268366,9.999e-05,2]
[351730394,1738769600178,-1123.73,9.999e-05,2]